fUST/lending_fUST_20240828
["ID","MTS","AMOUNT","RATE_DAILY","PERIOD"]
[336437963,1724826656009,-547.51,0.00014794,2]
[336437964,1724826656019,-2442.58511324,0.00020819,2]
[336437965,1724826656029,-5583.70176656,0.00020899,2]
[336437966,1724826656038,-2200.0,0.00020958,2]
[336437967,1724826656050,-700.0,0.00020999,2]
[336437968,1724826656059,-150.112233,0.00021,3]
[336437969,1724826656068,-3000.0,0.00021,2]
[336437970,1724826656077,-700.0,0.00021,2]
[336437971,1724826656086,-8217.07578201,0.00021,5]
[336437972,1724826656096,-258.66216953,0.00021,2]
[336437973,1724826656105,-10152.45559725,0.00021,2]
[336437974,1724826656115,-233.10421278,0.00021,2]
[336437975,1724826656124,-503.64031218,0.00021,2]
[336437976,1724826656133,-3000.0,0.0002101,2]
[336437977,1724826656143,-3000.0,0.0002102,2]
[336437978,1724826656151,-3000.0,0.0002103,2]
[336437979,1724826656161,-3000.0,0.0002104,2]
[336437980,1724826656170,-3000.0,0.0002105,2]
[336437981,1724826656180,-150.0,0.00021057,2]
[336437982,1724826656189,-3000.0,0.0002106,2]
[336437983,1724826656199,-3000.0,0.0002107,2]
[336437984,1724826656208,-3000.0,0.0002108,2]
[336437985,1724826656217,-3000.0,0.0002109,2]
[336437986,1724826656227,-500.0,0.000211,2]
[336437987,1724826656237,-500.0,0.000211,2]
[336437988,1724826656246,-3000.0,0.000211,2]
[336437989,1724826656255,-3000.0,0.0002111,2]
[336437990,1724826656264,-3000.0,0.0002112,2]
[336437991,1724826656274,-3000.0,0.0002113,2]
[336437992,1724826656283,-3000.0,0.0002114,2]
[336437993,1724826656292,-3000.0,0.0002115,2]
[336437994,1724826656301,-838.81551869,0.0002116,2]
[336437995,1724826656313,-2161.18448131,0.0002116,2]
[336437996,1724826656322,-3000.0,0.0002117,2]
[336437997,1724826656331,-5583.70176671,0.00021178,2]
[336437998,1724826656340,-3000.0,0.0002118,2]
[336437999,1724826656350,-3000.0,0.0002119,2]
[336438000,1724826656359,-3000.0,0.000212,2]
[336438001,1724826656368,-504.61853595,0.000212,2]
[336438002,1724826656377,-737.66847465,0.000212,30]
[336438003,1724826656618,-500.0,0.00010958,2]
[336438004,1724826656627,-500.0,0.00010958,2]
[336438005,1724826656637,-503.16061577,0.00010958,2]
[336438006,1724826656646,-500.0,0.00010958,2]
[336438007,1724826656655,-500.0,0.00010958,2]
[336438008,1724826656665,-244.83938423,0.00011231,2]
[336438073,1724827550140,-521.48215482,8.793e-05,2]
[336438074,1724827550160,-934.65211132,9.999e-05,2]
[336438075,1724827550181,-221.8034801,0.0001026,2]
[336438076,1724827550203,-157.24081456,0.00010739,2]
[336438077,1724827550223,-157.24081456,0.00010739,2]
[336438078,1724827550244,-300.0,0.00010957,2]
[336438079,1724827550268,-424.79391496,0.00010958,2]
[336438080,1724827550288,-500.0,0.00010958,2]
[336438081,1724827550311,-500.0,0.00010958,2]
[336438082,1724827550332,-589.08398287,0.00010958,2]
[336438083,1724827550353,-502.2377473,0.00010958,2]
[336438084,1724827550373,-500.0,0.00010958,2]
[336438085,1724827550393,-151.93,0.00010958,2]
[336438086,1724827550413,-342.09100325,0.00010958,2]
[336438090,1724827630095,-2302.60818964,0.00010125,2]
[336438091,1724827639107,-295.62707642,0.00010125,2]
[336438092,1724827646238,-263.98394639,0.00010125,2]
[336438093,1724827653105,-306.98992311,0.00010125,2]
[336438100,1724827749124,-184.7002281,0.00010036,2]
[336438101,1724827749147,-230.24608142,0.00010124,2]
[336438102,1724827750104,-69.75391858,0.00010124,2]
[336438103,1724827750126,-4216.69089314,0.00010125,2]
[336438104,1724827750148,-943.38690129,0.00010125,2]
[336438105,1724827750169,-217.18352706,0.00010125,2]
[336438106,1724827750190,-166.22384774,0.00010125,2]
[336438107,1724827750212,-2929.37334838,0.00010125,2]
[336438108,1724827750237,-159.29698911,0.00010125,2]
[336438228,1724827838649,-300.0,0.00010957,2]
[336438229,1724827838661,-543.88,0.00010958,2]
[336438230,1724827838671,-500.0,0.00010958,2]
[336438231,1724827838682,-500.0,0.00010958,2]
[336438232,1724827838691,-500.0,0.00010958,2]
[336438233,1724827838702,-500.0,0.00010958,2]
[336438234,1724827838714,-500.0,0.00010958,2]
[336438235,1724827838725,-500.0,0.00010958,2]
[336438236,1724827838735,-500.0,0.00010958,2]
[336438237,1724827838745,-500.0,0.00010958,2]
[336438238,1724827838756,-500.0,0.00010958,2]
[336438239,1724827838766,-500.0,0.00010958,2]
[336438240,1724827838776,-500.0,0.00010958,2]
[336438241,1724827838785,-500.0,0.00010958,2]
[336438242,1724827838795,-554.51,0.00010958,2]
[336438243,1724827838806,-500.0,0.00010958,2]
[336438244,1724827838815,-500.0,0.00010958,2]
[336438245,1724827838825,-500.0,0.00010958,2]
[336438246,1724827838836,-617.46,0.00010958,2]
[336438247,1724827838846,-500.0,0.00010958,2]
[336438248,1724827838856,-504.5131485,0.00010958,2]
[336438249,1724827838869,-500.0,0.00010958,2]
[336438250,1724827838879,-259.96,0.00010958,2]
[336438251,1724827838891,-500.0,0.00010958,2]
[336438252,1724827838903,-325.61953424,0.00010958,2]
[336438253,1724827838914,-500.0,0.00010958,2]
[336438254,1724827838924,-500.0,0.00010958,2]
[336438255,1724827838933,-500.0,0.00010958,2]
[336438256,1724827838946,-500.0,0.00010958,2]
[336438257,1724827838958,-511.12900496,0.00010958,2]
[336438258,1724827838967,-500.0,0.00010958,2]
[336438259,1724827838976,-500.0,0.00010958,2]
[336438260,1724827838986,-500.0,0.00010958,2]
[336438261,1724827838995,-500.0,0.00010958,2]
[336438262,1724827839005,-500.0,0.00010958,2]
[336438263,1724827839015,-500.0,0.00010958,2]
[336438264,1724827839025,-500.0,0.00010958,2]
[336438265,1724827839035,-500.0,0.00010958,2]
[336438266,1724827839047,-500.0,0.00010958,2]
[336438267,1724827839056,-500.0,0.00010958,2]
[336438268,1724827839066,-500.0,0.00010958,2]
[336438269,1724827839076,-500.0,0.00010958,2]
[336438270,1724827839088,-500.0,0.00010958,2]
[336438271,1724827839100,-500.0,0.00010958,2]
[336438272,1724827839109,-503.68151862,0.00010958,2]
[336438273,1724827839119,-500.0,0.00010958,2]
[336438274,1724827839130,-500.0,0.00010958,2]
[336438275,1724827839141,-500.0,0.00010958,2]
[336438276,1724827839152,-507.11129092,0.00010958,2]
[336438277,1724827839162,-500.0,0.00010958,2]
[336438278,1724827839171,-174.48106513,0.00010958,2]
[336438279,1724827839180,-500.0,0.00010958,2]
[336438280,1724827839190,-500.0,0.00010958,2]
[336438281,1724827839199,-501.90842142,0.00010958,2]
[336438282,1724827839209,-500.0,0.00010958,2]
[336438283,1724827839219,-337.22,0.00010958,2]
[336438284,1724827839229,-201.82732898,0.00010958,2]
[336438285,1724827839238,-500.0,0.00010958,2]
[336438286,1724827839250,-506.19,0.00010958,2]
[336438287,1724827839259,-500.0,0.00010958,2]
[336438288,1724827839269,-500.0,0.00010958,2]
[336438289,1724827839279,-500.0,0.00010958,2]
[336438290,1724827839288,-500.0,0.00010958,2]
[336438291,1724827839297,-546.22,0.00010958,2]
[336438292,1724827839306,-500.0,0.00010958,2]
[336438293,1724827839316,-501.45767318,0.00010958,2]
[336438294,1724827839326,-500.0,0.00010958,2]
[336438295,1724827839335,-500.0,0.00010958,2]
[336438296,1724827839349,-500.0,0.00010958,2]
[336438297,1724827839358,-508.44,0.00010958,2]
[336438298,1724827839368,-500.0,0.00010958,2]
[336438299,1724827839377,-500.0,0.00010958,2]
[336438300,1724827839388,-500.0,0.00010958,2]
[336438301,1724827839397,-500.0,0.00010958,2]
[336438302,1724827839410,-501.56368987,0.00010958,2]
[336438303,1724827839421,-157.06,0.00010958,2]
[336438304,1724827839431,-500.0,0.00010958,2]
[336438305,1724827839440,-300.67858138,0.00010958,2]
[336438306,1724827839450,-186.73919535,0.00010958,2]
[336438307,1724827839460,-502.14687425,0.00010958,2]
[336438308,1724827839470,-500.0,0.00010958,2]
[336438309,1724827839482,-500.0,0.00010958,2]
[336438310,1724827839492,-500.0,0.00010958,2]
[336438311,1724827839502,-500.0,0.00010958,2]
[336438312,1724827839513,-500.0,0.00010958,2]
[336438313,1724827839523,-500.0,0.00010958,2]
[336438314,1724827839533,-500.0,0.00010958,2]
[336438315,1724827839542,-500.0,0.00010958,2]
[336438316,1724827839552,-500.0,0.00010958,2]
[336438317,1724827839562,-500.0,0.00010958,2]
[336438318,1724827839571,-500.0,0.00010958,2]
[336438319,1724827839581,-500.0,0.00010958,2]
[336438320,1724827839590,-500.0,0.00010958,2]
[336438321,1724827839600,-500.0,0.00010958,2]
[336438322,1724827839611,-500.0,0.00010958,2]
[336438323,1724827839620,-503.42,0.00010958,2]
[336438324,1724827839630,-500.0,0.00010958,2]
[336438325,1724827839639,-500.0,0.00010958,2]
[336438326,1724827839649,-504.68206752,0.00010958,2]
[336438327,1724827839660,-500.0,0.00010958,2]
[336438328,1724827839669,-504.05827255,0.00010958,2]
[336438330,1724827839680,-500.0,0.00010958,2]
[336438331,1724827839690,-500.0,0.00010958,2]
[336438332,1724827839699,-500.0,0.00010958,2]
[336438333,1724827839709,-537.33,0.00010958,2]
[336438334,1724827839719,-500.0,0.00010958,2]
[336438335,1724827839729,-500.0,0.00010958,2]
[336438336,1724827839738,-411.10631778,0.00010958,2]
[336438337,1724827839748,-500.0,0.00010958,2]
[336438338,1724827839758,-500.0,0.00010958,2]
[336438339,1724827839767,-500.0,0.00010958,2]
[336438340,1724827839777,-500.0,0.00010958,2]
[336438341,1724827839787,-500.0,0.00010958,2]
[336438342,1724827839797,-504.08391123,0.00010958,2]
[336438343,1724827839806,-500.0,0.00010958,2]
[336438344,1724827839816,-500.0,0.00010958,2]
[336438345,1724827839826,-500.0,0.00010958,2]
[336438346,1724827839835,-500.0,0.00010958,2]
[336438347,1724827839845,-529.22,0.00010958,2]
[336438348,1724827839855,-500.0,0.00010958,2]
[336438349,1724827839865,-500.0,0.00010958,2]
[336438350,1724827839875,-500.0,0.00010958,2]
[336438351,1724827839885,-302.6741353,0.00010958,2]
[336438352,1724827839894,-501.39464723,0.00010958,2]
[336438353,1724827839904,-500.0,0.00010958,2]
[336438354,1724827839913,-505.10180024,0.00010958,2]
[336438355,1724827839923,-500.0,0.00010958,2]
[336438356,1724827839933,-500.0,0.00010958,2]
[336438357,1724827839942,-500.0,0.00010958,2]
[336438358,1724827839952,-261.45273816,0.00010958,2]
[336438359,1724827839961,-500.0,0.00010958,2]
[336438360,1724827839971,-500.0,0.00010958,2]
[336438361,1724827839981,-500.0,0.00010958,2]
[336438362,1724827839991,-500.0,0.00010958,2]
[336438363,1724827840001,-500.0,0.00010958,2]
[336438364,1724827840011,-351.82049501,0.00010958,2]
[336438365,1724827840022,-500.0,0.00010958,2]
[336438366,1724827840034,-500.0,0.00010958,2]
[336438367,1724827840045,-500.0,0.00010958,2]
[336438368,1724827840056,-500.0,0.00010958,2]
[336438369,1724827840066,-500.0,0.00010958,2]
[336438371,1724827840079,-500.0,0.00010958,2]
[336438372,1724827840089,-500.0,0.00010958,2]
[336438373,1724827840100,-614.11,0.00010958,2]
[336438374,1724827840110,-500.0,0.00010958,2]
[336438375,1724827840120,-500.0,0.00010958,2]
[336438376,1724827840130,-500.0,0.00010958,2]
[336438377,1724827840140,-500.0,0.00010958,2]
[336438378,1724827840151,-157.90899675,0.00010958,2]
[336438379,1724827840162,-500.0,0.00010958,2]
[336438380,1724827840172,-500.0,0.00010958,2]
[336438385,1724827840362,-500.0,0.00010958,2]
[336438387,1724827840372,-500.0,0.00010958,2]
[336438389,1724827840383,-500.0,0.00010958,2]
[336438390,1724827840394,-500.0,0.00010958,2]
[336438391,1724827840408,-500.0,0.00010958,2]
[336438392,1724827840419,-724.22,0.00010958,2]
[336438393,1724827840428,-500.0,0.00010958,2]
[336438394,1724827840438,-500.0,0.00010958,2]
[336438395,1724827840449,-1542.83,0.00010958,2]
[336438396,1724827840459,-500.0,0.00010958,2]
[336438397,1724827840470,-500.0,0.00010958,2]
[336438398,1724827840480,-500.0,0.00010958,2]
[336438399,1724827840490,-466.56255436,0.00010958,2]
[336438400,1724827840500,-500.0,0.00010958,2]
[336438401,1724827840511,-500.0,0.00010958,2]
[336438402,1724827840521,-567.88,0.00010958,2]
[336438403,1724827840531,-500.0,0.00010958,2]
[336438404,1724827840541,-567.88,0.00010958,2]
[336438406,1724827840551,-567.88,0.00010958,2]
[336438407,1724827840560,-573.88740182,0.00010958,2]
[336438408,1724827840570,-500.0,0.00010958,2]
[336438409,1724827840579,-648.35,0.00010958,2]
[336438410,1724827840589,-500.0,0.00010958,2]
[336438411,1724827840599,-500.0,0.00010958,2]
[336438412,1724827840609,-500.0,0.00010958,2]
[336438413,1724827840619,-500.0,0.00010958,2]
[336438414,1724827840628,-500.0,0.00010958,2]
[336438415,1724827840639,-500.0,0.00010958,2]
[336438416,1724827840649,-500.0,0.00010958,2]
[336438417,1724827840661,-500.0,0.00010958,2]
[336438418,1724827840671,-500.0,0.00010958,2]
[336438419,1724827840680,-500.0,0.00010958,2]
[336438420,1724827840690,-500.0,0.00010958,2]
[336438421,1724827840699,-1237.97,0.00010958,2]
[336438422,1724827840708,-500.0,0.00010958,2]
[336438423,1724827840718,-500.0,0.00010958,2]
[336438424,1724827840728,-500.0,0.00010958,2]
[336438425,1724827840737,-837.15,0.00010958,2]
[336438426,1724827840746,-500.0,0.00010958,2]
[336438427,1724827840756,-500.0,0.00010958,2]
[336438428,1724827840765,-500.0,0.00010958,2]
[336438429,1724827840774,-500.0,0.00010958,2]
[336438430,1724827840783,-552.56,0.00010958,2]
[336438431,1724827840793,-500.0,0.00010958,2]
[336438432,1724827840802,-500.0,0.00010958,2]
[336438433,1724827840811,-500.0,0.00010958,2]
[336438434,1724827840820,-1730.69,0.00010958,2]
[336438435,1724827840829,-500.0,0.00010958,2]
[336438436,1724827840838,-514.44,0.00010958,2]
[336438437,1724827840848,-500.0,0.00010958,2]
[336438438,1724827840857,-502.25351092,0.00010958,2]
[336438439,1724827840866,-500.0,0.00010958,2]
[336438440,1724827840876,-500.0,0.00010958,2]
[336438441,1724827840885,-500.0,0.00010958,2]
[336438442,1724827840896,-709.92,0.00010958,2]
[336438443,1724827840906,-500.0,0.00010958,2]
[336438444,1724827840915,-500.0,0.00010958,2]
[336438445,1724827840924,-500.0,0.00010958,2]
[336438446,1724827840934,-500.0,0.00010958,2]
[336438447,1724827840943,-500.0,0.00010958,2]
[336438448,1724827840953,-500.0,0.00010958,2]
[336438449,1724827840962,-500.0,0.00010958,2]
[336438450,1724827840971,-500.0,0.00010958,2]
[336438451,1724827840980,-500.0,0.00010958,2]
[336438452,1724827840989,-500.0,0.00010958,2]
[336438453,1724827840999,-4464.47,0.00010958,2]
[336438454,1724827841007,-500.0,0.00010958,2]
[336438455,1724827841017,-500.0,0.00010958,2]
[336438456,1724827841026,-585.62,0.00010958,2]
[336438457,1724827841035,-500.0,0.00010958,2]
[336438458,1724827841045,-500.0,0.00010958,2]
[336438459,1724827841054,-500.0,0.00010958,2]
[336438460,1724827841064,-500.0,0.00010958,2]
[336438461,1724827841073,-500.0,0.00010958,2]
[336438462,1724827841083,-500.0,0.00010958,2]
[336438463,1724827841092,-500.0,0.00010958,2]
[336438464,1724827841102,-500.0,0.00010958,2]
[336438465,1724827841112,-517.05,0.00010958,2]
[336438466,1724827841121,-500.0,0.00010958,2]
[336438467,1724827841131,-500.0,0.00010958,2]
[336438468,1724827841140,-500.0,0.00010958,2]
[336438469,1724827841150,-500.0,0.00010958,2]
[336438470,1724827841160,-500.0,0.00010958,2]
[336438471,1724827841170,-500.0,0.00010958,2]
[336438472,1724827841179,-502.92256548,0.00010958,2]
[336438473,1724827841188,-500.0,0.00010958,2]
[336438474,1724827841198,-500.0,0.00010958,2]
[336438475,1724827841207,-500.0,0.00010958,2]
[336438476,1724827841217,-500.0,0.00010958,2]
[336438477,1724827841226,-500.0,0.00010958,2]
[336438478,1724827841235,-500.0,0.00010958,2]
[336438479,1724827841245,-500.0,0.00010958,2]
[336438480,1724827841254,-500.0,0.00010958,2]
[336438481,1724827841263,-500.0,0.00010958,2]
[336438482,1724827841273,-500.0,0.00010958,2]
[336438483,1724827841282,-500.0,0.00010958,2]
[336438484,1724827841291,-500.0,0.00010958,2]
[336438485,1724827841301,-500.0,0.00010958,2]
[336438486,1724827841310,-500.0,0.00010958,2]
[336438487,1724827841319,-500.0,0.00010958,2]
[336438488,1724827841329,-500.0,0.00010958,2]
[336438489,1724827841339,-500.0,0.00010958,2]
[336438490,1724827841352,-500.0,0.00010958,2]
[336438491,1724827841361,-424.32862694,0.00010958,2]
[336438492,1724827841370,-500.0,0.00010958,2]
[336438493,1724827841379,-500.0,0.00010958,2]
[336438494,1724827841389,-500.0,0.00010958,2]
[336438495,1724827841398,-500.0,0.00010958,2]
[336438496,1724827841414,-500.0,0.00010958,2]
[336438497,1724827841424,-500.0,0.00010958,2]
[336438498,1724827841435,-500.0,0.00010958,2]
[336438499,1724827841446,-500.0,0.00010958,2]
[336438500,1724827841456,-500.0,0.00010958,2]
[336438501,1724827841465,-500.0,0.00010958,2]
[336438502,1724827841474,-594.217524,0.00010958,2]
[336438503,1724827841484,-500.0,0.00010958,2]
[336438504,1724827841493,-500.0,0.00010958,2]
[336438505,1724827841502,-1168.76,0.00010958,2]
[336438506,1724827841511,-500.0,0.00010958,2]
[336438507,1724827841520,-500.0,0.00010958,2]
[336438508,1724827841529,-2111.25,0.00010958,2]
[336438509,1724827841539,-500.0,0.00010958,2]
[336438510,1724827841549,-500.0,0.00010958,2]
[336438511,1724827841559,-500.0,0.00010958,2]
[336438512,1724827841568,-500.0,0.00010958,2]
[336438513,1724827841577,-500.0,0.00010958,2]
[336438514,1724827841588,-500.0,0.00010958,2]
[336438515,1724827841597,-500.0,0.00010958,2]
[336438516,1724827841609,-500.0,0.00010958,2]
[336438517,1724827841620,-500.0,0.00010958,2]
[336438518,1724827841629,-500.0,0.00010958,2]
[336438519,1724827841639,-500.0,0.00010958,2]
[336438520,1724827841649,-500.0,0.00010958,2]
[336438521,1724827841661,-500.0,0.00010958,2]
[336438522,1724827841670,-500.0,0.00010958,2]
[336438523,1724827841680,-500.0,0.00010958,2]
[336438524,1724827841690,-500.0,0.00010958,2]
[336438525,1724827841699,-500.0,0.00010958,2]
[336438526,1724827841709,-500.0,0.00010958,2]
[336438527,1724827841718,-500.0,0.00010958,2]
[336438528,1724827841728,-500.0,0.00010958,2]
[336438529,1724827841739,-500.0,0.00010958,2]
[336438530,1724827841749,-231.3312643,0.00010959,2]
[336438531,1724827841758,-826.33,0.00010959,2]
[336438532,1724827841770,-500.0,0.00010973,2]
[336438533,1724827841779,-500.73128569,0.00010973,2]
[336438534,1724827841789,-500.0,0.00010973,2]
[336438535,1724827841799,-500.0,0.00010973,2]
[336438536,1724827841808,-500.0,0.00010973,2]
[336438537,1724827841818,-2723.66712045,0.00011132,2]
[336438538,1724827841827,-567.88,0.00011231,2]
[336438539,1724827841836,-567.88,0.00011231,2]
[336438540,1724827841846,-500.0,0.00011232,2]
[336438541,1724827841855,-500.0,0.00011232,2]
[336438542,1724827841867,-232.34,0.00011232,2]
[336438543,1724827841876,-261.98138611,0.00011232,2]
[336438544,1724827841887,-500.0,0.00011232,2]
[336438545,1724827841899,-500.0,0.00011232,2]
[336438546,1724827841910,-500.0,0.00011232,2]
[336438547,1724827841921,-171.72825114,0.00011232,2]
[336438548,1724827841931,-500.0,0.00011232,2]
[336438549,1724827841942,-500.0,0.00011232,2]
[336438550,1724827841951,-500.0,0.00011232,2]
[336438551,1724827841960,-503.45219033,0.00011232,2]
[336438552,1724827841969,-500.0,0.00011232,2]
[336438553,1724827841979,-500.0,0.00011232,2]
[336438554,1724827841990,-500.0,0.00011232,2]
[336438555,1724827842001,-500.0,0.00011232,2]
[336438556,1724827842011,-500.0,0.00011232,2]
[336438557,1724827842023,-409.60287962,0.00011232,2]
[336438558,1724827842036,-500.0,0.00011232,2]
[336438559,1724827842046,-500.0,0.00011232,2]
[336438560,1724827842054,-501.70695037,0.00011232,2]
[336438561,1724827842064,-500.0,0.00011232,2]
[336438562,1724827842075,-500.0,0.00011232,2]
[336438563,1724827842084,-500.0,0.00011232,2]
[336438564,1724827842095,-500.0,0.00011232,2]
[336438565,1724827842107,-500.0,0.00011232,2]
[336438566,1724827842119,-416.45,0.00011232,2]
[336438567,1724827842129,-591.97661772,0.00011232,2]
[336438568,1724827842139,-500.0,0.00011232,2]
[336438569,1724827842148,-500.0,0.00011232,2]
[336438570,1724827842159,-500.0,0.00011232,2]
[336438571,1724827842169,-500.0,0.00011232,2]
[336438572,1724827842181,-500.0,0.00011232,2]
[336438573,1724827842192,-500.0,0.00011232,2]
[336438574,1724827842201,-500.0,0.00011232,2]
[336438575,1724827842211,-626.53211972,0.00011232,2]
[336438576,1724827842221,-500.0,0.00011232,2]
[336438577,1724827842234,-500.0,0.00011232,2]
[336438578,1724827842245,-500.0,0.00011232,2]
[336438579,1724827842255,-500.0,0.00011232,2]
[336438580,1724827842264,-500.0,0.00011232,2]
[336438581,1724827842273,-500.0,0.00011232,2]
[336438582,1724827842283,-500.0,0.00011232,2]
[336438583,1724827842292,-500.0,0.00011232,2]
[336438584,1724827842302,-500.0,0.00011232,2]
[336438585,1724827842310,-500.0,0.00011232,2]
[336438586,1724827842320,-640.26,0.00011232,2]
[336438587,1724827842330,-500.0,0.00011232,2]
[336438588,1724827842344,-500.0,0.00011232,2]
[336438589,1724827842353,-523.41306788,0.00011232,2]
[336438590,1724827842364,-422.53,0.00011232,2]
[336438591,1724827842374,-500.0,0.00011232,2]
[336438592,1724827842384,-500.0,0.00011232,2]
[336438593,1724827842393,-560.55202668,0.00011232,2]
[336438594,1724827842406,-500.0,0.00011232,2]
[336438595,1724827842416,-209.13549547,0.00011232,2]
[336438596,1724827842427,-500.0,0.00011232,2]
[336438597,1724827842437,-500.0,0.00011232,2]
[336438598,1724827842446,-500.0,0.00011232,2]
[336438599,1724827842456,-500.0,0.00011232,2]
[336438600,1724827842466,-500.0,0.00011232,2]
[336438601,1724827842476,-587.36,0.00011232,2]
[336438602,1724827842486,-500.0,0.00011232,2]
[336438603,1724827842495,-500.0,0.00011232,2]
[336438604,1724827842504,-500.0,0.00011232,2]
[336438605,1724827842514,-500.0,0.00011232,2]
[336438606,1724827842525,-500.0,0.00011232,2]
[336438607,1724827842535,-500.0,0.00011232,2]
[336438608,1724827842546,-500.0,0.00011232,2]
[336438609,1724827842557,-530.28314291,0.00011232,2]
[336438610,1724827842566,-500.0,0.00011232,2]
[336438611,1724827842578,-500.0,0.00011232,2]
[336438612,1724827842588,-500.0,0.00011232,2]
[336438613,1724827842598,-500.0,0.00011232,2]
[336438614,1724827842607,-500.0,0.00011232,2]
[336438615,1724827842617,-500.0,0.00011232,2]
[336438616,1724827842627,-500.0,0.00011232,2]
[336438617,1724827842637,-500.0,0.00011232,2]
[336438618,1724827842647,-614.11,0.00011232,2]
[336438619,1724827842657,-500.0,0.00011232,2]
[336438620,1724827842666,-170.80719217,0.00011232,2]
[336438621,1724827842677,-500.0,0.00011232,2]
[336438622,1724827842689,-500.0,0.00011232,2]
[336438623,1724827842698,-500.0,0.00011232,2]
[336438624,1724827842709,-500.0,0.00011232,2]
[336438625,1724827842720,-500.0,0.00011232,2]
[336438626,1724827842732,-437.35340175,0.00011232,2]
[336438627,1724827842744,-500.0,0.00011232,2]
[336438628,1724827842754,-503.6087173,0.00011232,2]
[336438629,1724827842766,-724.22,0.00011232,2]
[336438630,1724827842776,-500.0,0.00011232,2]
[336438631,1724827842786,-1542.83,0.00011232,2]
[336438632,1724827842797,-500.0,0.00011232,2]
[336438633,1724827842808,-500.0,0.00011232,2]
[336438634,1724827842819,-500.0,0.00011232,2]
[336438635,1724827842829,-500.0,0.00011232,2]
[336438636,1724827842838,-500.0,0.00011232,2]
[336438637,1724827842847,-500.0,0.00011232,2]
[336438638,1724827842856,-500.0,0.00011232,2]
[336438639,1724827842866,-500.0,0.00011232,2]
[336438641,1724827842875,-500.0,0.00011232,2]
[336438643,1724827842886,-500.0,0.00011232,2]
[336438645,1724827842895,-500.0,0.00011232,2]
[336438646,1724827842906,-500.0,0.00011232,2]
[336438647,1724827842916,-500.0,0.00011232,2]
[336438648,1724827842925,-500.0,0.00011232,2]
[336438649,1724827842935,-500.0,0.00011232,2]
[336438650,1724827842947,-261.19560127,0.00011232,2]
[336438651,1724827842959,-1237.97,0.00011232,2]
[336438652,1724827842971,-500.0,0.00011232,2]
[336438653,1724827842981,-500.0,0.00011232,2]
[336438654,1724827842991,-837.15,0.00011232,2]
[336438655,1724827843001,-264.59,0.00011232,2]
[336438656,1724827843011,-500.0,0.00011232,2]
[336438657,1724827843022,-309.64,0.00011232,2]
[336438658,1724827843033,-541.43444545,0.00011232,2]
[336438659,1724827843044,-1730.69,0.00011232,2]
[336438660,1724827843055,-500.0,0.00011232,2]
[336438661,1724827843067,-500.0,0.00011232,2]
[336438662,1724827843076,-500.0,0.00011232,2]
[336438663,1724827843085,-500.0,0.00011232,2]
[336438664,1724827843095,-709.92,0.00011232,2]
[336438665,1724827843107,-500.0,0.00011232,2]
[336438666,1724827843117,-500.0,0.00011232,2]